bitfinex/quotes_SOLUSD_20260213
["timestamp","ask_amount","ask_price","bid_price","bid_amount"]
[1771003252266,0.1,84.51,84.5,10.39325429]
[1771003252586,43.68,84.528,84.5,12.13426858]
[1771003253187,43.68,84.528,84.5,22.52752287]
[1771003253391,0.1,84.53,84.511,0.30000001]
[1771003254089,0.2,84.54,84.52,10.39325429]
[1771003254485,0.2,84.54,84.53,10.39325429]
[1771003254682,0.2,84.54,84.531,11.82997953]
[1771003255182,1e-08,84.54,84.531,11.82997953]
[1771003255372,0.1,84.55,84.531,11.82997953]
[1771003255573,0.1,84.55,84.499,45.68]
[1771003255787,0.59999999,84.55,84.52,10.39325429]
[1771003256393,0.59999999,84.55,84.54,10.39325429]
[1771003256394,0.1,84.55,84.54,10.39325429]
[1771003256578,11.82325941,84.58,84.54,10.39325429]
[1771003256777,11.82325941,84.58,84.55,10.39325429]
[1771003257377,11.82325941,84.58,84.541,11.82858021]
[1771003257581,10.39325429,84.57,84.54,10.39325429]
[1771003257874,10.89325428,84.57,84.541,11.82858021]
[1771003258074,43.7,84.581,84.55,10.39325429]
[1771003258280,0.49999999,84.569,84.54,10.39325429]
[1771003258889,0.49999999,84.569,84.541,11.82858021]
[1771003259289,10.89325428,84.58,84.55,10.39325429]
[1771003259588,10.89325428,84.58,84.54,29.57150729]
[1771003259589,0.49999999,84.578,84.54,10.39325429]
[1771003259785,0.49999999,84.559,84.536,11.82915764]
[1771003259974,0.49999999,84.559,84.521,11.83137918]
[1771003260170,41.38143037,84.579,84.492,29.58829453]
[1771003260171,0.49999999,84.539,84.492,29.58829453]
[1771003260369,10.39325429,84.54,84.45,10.39325429]
[1771003260370,10.39325429,84.5,84.45,10.39325429]
[1771003260593,10.39325429,84.5,84.405,47.39053918]
[1771003260594,10.39325429,84.48,84.44,10.39325429]
[1771003260773,10.39325429,84.5,84.47,10.39325429]
[1771003260971,10.89325428,84.51,84.471,11.8383824]
[1771003261491,0.49999999,84.521,84.48,10.39325429]
[1771003261691,10.39325429,84.6,84.49,10.39325429]
[1771003261692,10.39325429,84.53,84.49,10.39325429]
[1771003262102,10.39325429,84.53,84.5,10.39325429]
[1771003262388,10.39325429,84.53,84.49,10.39325429]
[1771003263087,0.49999999,84.519,84.475,45.66]
[1771003263391,0.49999999,84.519,84.49,10.39325429]
[1771003263598,0.49999999,84.509,84.47,22.23174154]
[1771003264091,0.49999999,84.509,84.48,10.39325429]
[1771003265493,11.83319922,84.508,84.481,11.83698109]
[1771003265668,0.49999999,84.509,84.481,11.83698109]
[1771003265871,12.33311508,84.509,84.481,11.83698109]
[1771003266094,0.49999999,84.509,84.481,11.83698109]
[1771003267194,0.49999999,84.519,84.49,10.39325429]
[1771003267373,0.49999999,84.519,84.481,11.83698109]
[1771003267374,0.49999999,84.499,84.46,10.39325429]
[1771003267576,0.49999999,84.499,84.461,0.03453707]
[1771003267894,0.49999999,84.509,84.471,0.03453707]
[1771003268392,0.49999999,84.499,84.462,11.8396416]
[1771003268785,0.49999999,84.499,84.47,10.39325429]
[1771003269189,0.49999999,84.499,84.45,29.60319021]
[1771003269190,10.39325429,84.48,84.452,0.06234161]
[1771003269377,0.49999999,84.479,84.444,45.62]
[1771003269579,12.33726132,84.479,84.447,11.84162024]
[1771003269795,10.39325429,84.48,84.451,0.06234161]
[1771003270297,10.39325429,84.47,84.444,45.62]
[1771003270493,10.39325429,84.47,84.431,0.07601519]
[1771003270494,0.49999999,84.469,84.431,0.07601519]
[1771003270794,0.49999999,84.459,84.422,0.07601519]
[1771003271180,85.05041465,84.479,84.431,0.07601519]
[1771003271181,10.39325429,84.47,84.431,0.07601519]
[1771003271379,10.39325429,84.47,84.441,0.08952581]
[1771003272577,0.49999999,84.469,84.431,0.10289232]
[1771003272772,10.39325429,84.46,84.431,0.10289232]
[1771003273284,10.39325429,84.46,84.422,45.75609675]
[1771003273285,0.49999999,84.459,84.422,45.75609675]
[1771003273486,0.49999999,84.458,84.423,11.84511329]
[1771003274084,29.59723548,84.468,84.44,10.39325429]
[1771003274085,11.83954177,84.463,84.44,10.39325429]
[1771003274385,11.83954177,84.463,84.431,0.11609675]
[1771003274776,11.8386627,84.469,84.431,0.11609675]
[1771003274989,0.49999999,84.468,84.431,0.11609675]
[1771003275994,0.49999999,84.468,84.431,11.84399095]
[1771003276178,0.49999999,84.468,84.44,10.39325429]
[1771003276580,11.83754157,84.477,84.441,0.15478954]
[1771003277208,11.83754157,84.477,84.45,10.56063539]
[1771003277507,43.54,84.493,84.431,41.45396832]
[1771003277508,10.39325429,84.49,84.46,10.39325429]
[1771003277797,0.49999999,84.489,84.451,0.1673811]
[1771003278300,11.83501844,84.496,84.461,0.17983904]
[1771003278598,12.33501843,84.496,84.461,0.17983904]
[1771003278773,0.49999999,84.495,84.461,0.17983904]
[1771003278974,0.49999999,84.505,84.471,0.17983904]
[1771003279172,12.33221657,84.516,84.481,0.1921529]
[1771003279394,0.49999999,84.515,84.481,0.1921529]
[1771003279597,0.49999999,84.527,84.491,0.1921529]
[1771003279907,0.49999999,84.519,84.48,10.58540719]
[1771003280103,0.49999999,84.507,84.48,10.39325429]
[1771003280279,0.49999999,84.507,84.481,11.83698109]
[1771003280675,10.39325429,84.5,84.47,10.39325429]
[1771003280897,0.49999999,84.489,84.461,0.204326]
[1771003281097,0.49999999,84.489,84.452,29.60245327]
[1771003281298,0.49999999,84.489,84.45,10.39325429]
[1771003281478,41.41619727,84.508,84.433,0.21636515]
[1771003281479,0.49999999,84.469,84.433,0.21636515]
[1771003282199,0.49999999,84.469,84.441,11.84258831]
[1771003282400,0.49999999,84.469,84.441,12.07085698]
[1771003282902,0.49999999,84.469,84.441,0.22826867]
[1771003283204,0.49999999,84.468,84.432,0.24003578]
[1771003284911,0.49999999,84.468,84.434,0.25166555]
[1771003285804,0.49999999,84.466,84.434,0.25166555]
[1771003286782,10.39325429,84.46,84.428,11.8444118]
[1771003286993,10.39325429,84.46,84.431,11.84399095]
[1771003287188,22.2332773,84.46,84.431,11.84399095]
[1771003287603,0.49999999,84.459,84.431,11.84399095]
[1771003288104,0.49999999,84.479,84.45,10.39325429]
[1771003288306,10.39325429,84.47,84.44,10.39325429]
[1771003288503,0.49999999,84.459,84.431,11.84399095]
[1771003288823,0.49999999,84.449,84.421,11.84532228]
[1771003288987,0.49999999,84.447,84.414,0.29687887]
[1771003289187,0.49999999,84.447,84.42,10.39325429]
[1771003289509,43.46,84.471,84.413,11.84651653]
[1771003289510,0.49999999,84.456,84.43,10.39325429]
[1771003289698,29.59638542,84.47,84.431,0.30785775]
[1771003289699,0.49999999,84.465,84.431,0.30785775]
[1771003289896,11.83855353,84.47,84.441,0.30785775]
[1771003290089,0.49999999,84.469,84.441,0.30785775]
[1771003290808,11.83800997,84.474,84.441,0.30785775]
[1771003291002,0.60850656,84.473,84.441,12.1503575]
[1771003291210,0.60850656,84.473,84.442,0.32670938]
[1771003291411,10.39325429,84.48,84.45,10.39325429]
[1771003291588,10.39325429,84.48,84.441,11.84249975]
[1771003291589,12.4439466,84.492,84.46,10.39325429]
[1771003291788,10.39325429,84.49,84.46,10.39325429]
[1771003292107,0.60850656,84.489,84.46,10.39325429]
[1771003292307,0.60850656,84.498,84.47,10.39325429]
[1771003293307,59.14818929,84.534,84.433,47.37455137]
[1771003293308,0.60850656,84.516,84.49,10.39325429]
[1771003294216,4.61729252,84.557,84.471,41.4343384]
[1771003294217,0.60850656,84.529,84.5,10.39325429]
[1771003294914,0.60850656,84.539,84.501,0.35780028]
[1771003295205,0.60850656,84.537,84.5,10.39325429]
[1771003295414,0.60850656,84.519,84.49,10.39325429]
[1771003295590,0.60850656,84.519,84.491,11.83558012]
[1771003295792,10.39325429,84.53,84.501,0.36535487]
[1771003296010,0.60850656,84.537,84.501,0.36535487]
[1771003296392,10.39325429,84.53,84.501,0.36535487]
[1771003296588,0.60850656,84.519,84.491,11.83558012]
[1771003296914,41.40149991,84.538,84.5,10.39325429]
[1771003296915,0.60850656,84.528,84.5,10.39325429]
[1771003297116,41.40149991,84.538,84.491,11.83558012]
[1771003297117,11.82899997,84.538,84.511,0.38019287]
[1771003297518,0.65188827,84.545,84.52,10.39325429]
[1771003297810,0.65188827,84.556,84.521,0.38747712]
[1771003298006,0.65188827,84.556,84.53,10.39325429]
[1771003298191,0.65188827,84.556,84.53,10.78073141]
[1771003299097,0.65188827,84.566,84.54,10.39325429]
[1771003299295,11.82415797,84.573,84.541,0.40178732]
[1771003299514,0.65188827,84.572,84.541,0.40178732]
[1771003299901,0.65188827,84.582,84.541,0.40178732]
[1771003300104,0.53976083,84.612,84.561,0.63307777]
[1771003300105,10.39325429,84.6,84.561,0.63307777]
[1771003300502,22.21359881,84.6,84.561,0.63307777]
[1771003300904,10.39325429,84.6,84.563,0.63307777]
[1771003301221,11.81976006,84.605,84.571,0.63307777]
[1771003301419,11.82074554,84.598,84.563,0.63307777]
[1771003301603,10.39325429,84.6,84.563,0.63307777]
[1771003302120,0.65188827,84.597,84.563,0.63307777]
[1771003302325,0.65188827,84.597,84.57,10.39325429]
[1771003302523,0.65188827,84.597,84.57,11.02633206]
[1771003302910,0.65188827,84.597,84.57,0.63307777]
[1771003303106,10.39325429,84.58,84.55,10.39325429]
[1771003303426,0.53976083,84.612,84.561,0.63307777]
[1771003303427,10.39325429,84.6,84.561,0.63307777]
[1771003303599,0.53976083,84.612,84.581,0.63307777]
[1771003303600,10.39325429,84.61,84.581,0.63307777]
[1771003304025,11.81907362,84.609,84.581,0.63307777]
[1771003304210,10.39325429,84.61,84.581,0.63307777]
[1771003304405,0.65188827,84.608,84.581,0.63307777]
[1771003305000,0.53976083,84.612,84.583,0.63307777]
[1771003306125,11.04514256,84.6,84.573,0.63307777]
[1771003306434,11.81879424,84.611,84.562,12.45872049]
[1771003306435,11.04514256,84.59,84.562,12.45872049]
[1771003306722,11.04514256,84.59,84.528,4.61729252]
[1771003306723,10.39325429,84.57,84.542,0.63307777]
[1771003306898,0.65188827,84.58,84.542,0.63307777]
[1771003306899,11.04514256,84.58,84.542,0.63307777]
[1771003307221,10.39325429,84.58,84.553,0.63307777]
[1771003307921,10.39325429,84.56,84.533,11.82957662]
[1771003308220,0.65188827,84.569,84.533,12.46265439]
[1771003308406,10.39325429,84.56,84.534,0.63307777]
[1771003308608,0.65188827,84.569,84.54,10.39325429]
[1771003308807,0.65188827,84.569,84.54,0.63307777]
[1771003309215,10.39325429,84.56,84.54,0.63307777]
[1771003309434,0.65188827,84.559,84.53,11.83003395]
[1771003309623,0.65188827,84.549,84.525,45.58]
[1771003310424,10.39325429,84.54,84.525,45.58]
[1771003310829,0.65188827,84.549,84.512,0.63307777]
[1771003311008,0.65188827,84.549,84.521,0.63307777]
[1771003312932,11.82760088,84.548,84.522,0.63307777]
[1771003313111,11.82760088,84.548,84.48,10.38191703]
[1771003313112,0.65188827,84.529,84.502,0.63307777]
[1771003313312,10.38191703,84.52,84.495,11.83490902]
[1771003313714,0.65188827,84.529,84.496,0.63307777]
[1771003314016,0.65188827,84.538,84.501,0.63307777]
[1771003314328,0.65188827,84.538,84.511,0.63307777]
[1771003314526,11.82760088,84.548,84.495,11.83490902]
[1771003314527,11.0338053,84.52,84.495,11.83490902]
[1771003314732,0.65188827,84.519,84.491,0.63307777]
[1771003314913,11.83179914,84.518,84.491,0.63307777]
[1771003315224,0.65188827,84.519,84.492,11.83544004]
[1771003315427,3.49,85.787,84.479,0.63307777]
[1771003315428,0.65188827,84.509,84.479,0.63307777]
[1771003315635,11.0338053,84.5,84.469,0.63307777]
[1771003315810,0.65188827,84.5,84.471,0.63307777]
[1771003316122,0.65188827,84.509,84.474,0.63307777]
[1771003316832,10.38191703,84.5,84.474,0.63307777]
[1771003317032,11.83445957,84.499,84.474,0.63307777]
[1771003317210,0.65188827,84.489,84.468,45.62]
[1771003317417,0.65188827,84.489,84.456,11.84048498]
[1771003317418,10.38191703,84.48,84.456,11.84048498]
[1771003317825,0.65188827,84.489,84.46,11.0149948]
[1771003318332,0.65188827,84.489,84.46,0.63307777]
[1771003318644,11.0338053,84.48,84.451,11.84108716]
[1771003318814,0.65188827,84.479,84.451,11.84108716]
[1771003319140,0.65188827,84.479,84.438,29.60736767]
[1771003319141,0.65188827,84.459,84.436,45.62]
[1771003319445,51.95070036,84.507,84.44,10.38191703]
[1771003319446,10.38191703,84.47,84.44,10.38191703]
[1771003319610,22.22048978,84.47,84.44,0.63307777]
[1771003319813,22.87092831,84.48,84.441,0.63307777]
[1771003320021,29.58992137,84.489,84.451,0.63307777]
[1771003320022,0.65188827,84.489,84.451,0.63307777]
[1771003320212,10.38191703,84.48,84.451,0.63307777]
[1771003320408,0.65188827,84.498,84.435,148.04286213]
[1771003320632,10.38191703,84.49,84.451,0.63307777]
[1771003320842,10.38191703,84.49,84.46,11.08552081]
[1771003321249,16.54,84.511,84.451,45.64]
[1771003321250,10.38191703,84.5,84.462,0.70360378]
[1771003321442,0.752947,84.499,84.471,0.70360378]
[1771003321734,0.752947,84.499,84.462,0.70360378]
[1771003321952,0.752947,84.499,84.47,10.38191703]
[1771003322111,0.752947,84.499,84.471,0.70360378]
[1771003322307,0.752947,84.499,84.461,11.83978404]
[1771003322308,0.752947,84.509,84.48,10.38191703]
[1771003322514,47.29477891,84.576,84.49,10.38191703]
[1771003322515,11.13486403,84.52,84.49,10.38191703]
[1771003322726,0.752947,84.52,84.491,0.70360378]
[1771003322934,0.752947,84.529,84.5,10.38191703]
[1771003323143,0.752947,84.519,84.481,0.70360378]
[1771003323330,0.752947,84.508,84.48,45.62]
[1771003323939,0.752947,84.508,84.473,11.83807662]
[1771003324120,11.13486403,84.5,84.473,11.83807662]
[1771003324320,11.13486403,84.49,84.461,75.92306388]
[1771003324636,0.752947,84.499,84.465,11.83911104]
[1771003325145,0.752947,84.499,84.461,58.16337776]
[1771003325315,11.83459963,84.498,84.462,0.70360378]
[1771003325520,0.752947,84.497,84.462,0.70360378]
[1771003326442,0.752947,84.479,84.44,11.08552081]
[1771003326626,0.752947,84.479,84.441,0.70360378]
[1771003327130,0.752947,84.479,84.45,10.38191703]
[1771003327525,11.83740145,84.478,84.45,10.38191703]
[1771003327835,11.83740145,84.478,84.449,0.70360378]
[1771003328037,0.752947,84.477,84.449,0.70360378]
[1771003328947,0.752947,84.469,84.44,45.64]
[1771003329432,11.83880286,84.468,84.44,45.64]
[1771003329630,0.752947,84.467,84.44,45.64]
[1771003329838,0.752947,84.467,84.43,10.38191703]
[1771003330221,0.752947,84.467,84.428,45.64]
[1771003330222,10.38191703,84.45,84.428,45.64]
[1771003330827,0.752947,84.459,84.43,10.38191703]
[1771003331222,0.752947,84.459,84.428,45.64]
[1771003331635,11.84020459,84.458,84.43,10.38191703]
[1771003331837,0.752947,84.457,84.43,10.38191703]
[1771003332036,0.752947,84.457,84.428,45.64]
[1771003332436,0.752947,84.449,84.428,45.64]
[1771003332947,0.752947,84.449,84.417,0.70360378]
[1771003333246,0.752947,84.449,84.421,0.70360378]
[1771003333546,0.752947,84.449,84.41,45.86]
[1771003333547,0.752947,84.447,84.412,0.70360378]
[1771003335133,0.752947,84.447,84.413,11.84651653]
[1771003335332,0.752947,84.447,84.42,10.38191703]
[1771003335648,0.752947,84.445,84.414,0.70360378]
[1771003336062,0.752947,84.439,84.41,45.86]
[1771003336859,41.44660492,84.446,84.411,0.70360378]
[1771003337066,42.19955192,84.446,84.412,0.70360378]
[1771003337363,0.752947,84.445,84.412,0.70360378]
[1771003337534,11.84286881,84.439,84.412,0.70360378]
[1771003337734,11.84286881,84.439,84.41,56.24191703]
[1771003337735,11.84146644,84.449,84.414,0.70360378]
[1771003337935,11.84146644,84.449,84.421,0.70360378]
[1771003339059,12.59384009,84.454,84.421,0.70360378]
[1771003339270,0.752947,84.453,84.421,0.70360378]
[1771003339437,0.752947,84.453,84.42,10.38191703]
[1771003339438,0.752947,84.439,84.413,0.70360378]
[1771003339939,11.84300907,84.438,84.413,0.70360378]
[1771003341058,11.84300907,84.438,84.41,45.86]
[1771003341059,0.752947,84.455,84.421,0.70360378]
[1771003341263,12.59357218,84.455,84.421,0.70360378]
[1771003341438,0.752947,84.454,84.421,0.70360378]
[1771003341758,11.13486403,84.45,84.421,0.70360378]
[1771003341936,22.9763262,84.45,84.422,11.8452536]
[1771003342137,12.59440917,84.45,84.423,0.70360378]
[1771003342544,22.9763262,84.45,84.423,0.70360378]
[1771003342953,12.59440917,84.45,84.423,0.70360378]
[1771003344467,0.752947,84.449,84.423,0.70360378]
[1771003344655,0.752947,84.449,84.412,0.70360378]
[1771003345160,0.752947,84.439,84.41,45.86]
[1771003345856,0.752947,84.439,84.411,0.70360378]
[1771003346459,0.752947,84.449,84.42,10.38191703]
[1771003346643,0.752947,84.449,84.421,0.70360378]
[1771003347745,11.84208369,84.445,84.421,0.70360378]
[1771003349361,11.84144818,84.45,84.423,0.70360378]
[1771003349762,0.752947,84.449,84.411,0.70360378]
[1771003349974,0.752947,84.429,84.41,45.86]
[1771003350154,0.752947,84.429,84.41,0.2]
[1771003350764,0.752947,84.429,84.401,11.84813615]
[1771003350765,0.81178955,84.419,84.394,45.82]
[1771003351265,0.81178955,84.419,84.394,57.66907891]
[1771003351840,0.81178955,84.417,84.394,57.66907891]
[1771003352651,0.81178955,84.417,84.394,45.82]
[1771003353052,0.81178955,84.417,84.395,11.84904318]
[1771003353474,10.38191703,84.41,84.394,45.82]
[1771003353659,10.38191703,84.42,84.393,0.81926754]
[1771003353848,0.81178955,84.418,84.393,0.81926754]
[1771003355469,0.81178955,84.418,84.392,11.8494644]
[1771003355470,10.38191703,84.44,84.403,0.81926754]
[1771003355666,10.38191703,84.43,84.403,0.81926754]
[1771003355866,4.61729252,84.47,84.402,41.46821165]
[1771003355867,0.81178955,84.45,84.421,0.81926754]
[1771003356073,11.19370658,84.45,84.421,0.81926754]
[1771003356446,0.81178955,84.443,84.418,45.88]
[1771003356651,11.19370658,84.45,84.419,0.81926754]
[1771003357167,0.82941831,84.449,84.419,0.81926754]
[1771003357573,0.82941831,84.449,84.421,0.78197571]
[1771003358068,10.38191703,84.44,84.421,0.78197571]
[1771003358460,0.82941831,84.447,84.421,0.78197571]
[1771003359567,0.82941831,84.447,84.422,11.8452536]
[1771003360978,0.82941831,84.447,84.422,12.62722931]
[1771003362000,10.38191703,84.44,84.418,46.66197571]
[1771003362173,10.38191703,84.44,84.419,11.84567455]
[1771003362653,0.82941831,84.429,84.405,45.96]
[1771003362850,0.82941831,84.419,84.386,11.85030692]
[1771003363080,11.21133534,84.41,84.387,45.96]
[1771003363461,0.82941831,84.41,84.387,45.96]
[1771003364172,0.82941831,84.41,84.388,11.85002607]
[1771003365253,0.82941831,84.418,84.389,0.78197571]
[1771003366187,11.84595519,84.417,84.389,0.78197571]
[1771003366375,10.38191703,84.41,84.389,0.78197571]
[1771003366681,0.82941831,84.419,84.39,0.78197571]
[1771003367078,0.82941831,84.427,84.391,0.78197571]
[1771003367276,0.82941831,84.427,84.39,10.38191703]
[1771003367277,0.82941831,84.427,84.393,0.78197571]
[1771003367477,10.38191703,84.43,84.393,0.78197571]
[1771003368184,0.82941831,84.429,84.395,0.78197571]
[1771003368478,10.38191703,84.42,84.395,0.78197571]
[1771003368863,0.82941831,84.428,84.395,0.78197571]
[1771003370169,0.82941831,84.428,84.396,11.84890279]
[1771003370483,0.82941831,84.428,84.397,0.78197571]
[1771003371459,11.8444916,84.428,84.397,0.78197571]
[1771003371664,0.82941831,84.427,84.397,0.78197571]
[1771003372376,0.82941831,84.427,84.399,0.78197571]
[1771003372688,10.41193814,84.45,84.411,0.78197571]
[1771003372978,10.41193814,84.45,84.4,46.14]
[1771003372979,10.41193814,84.43,84.404,0.78197571]
[1771003373191,29.59838318,84.465,84.404,0.78197571]
[1771003373192,0.82941831,84.429,84.404,0.78197571]
[1771003373795,0.82941831,84.439,84.404,0.78197571]
[1771003373999,0.82941831,84.439,84.4,56.55193814]
[1771003374000,0.82941831,84.439,84.411,0.78197571]
[1771003374365,0.82941831,84.439,84.412,11.84665687]
[1771003375372,10.41193814,84.43,84.412,11.84665687]
[1771003375571,10.41193814,84.43,84.407,11.84723792]
[1771003375775,0.82941831,84.437,84.407,11.84723792]
[1771003375776,0.82941831,84.437,84.407,12.62921363]
[1771003377387,0.82941831,84.437,84.408,0.78197571]
[1771003378087,0.82941831,84.437,84.41,0.78197571]
[1771003379984,0.82941831,84.437,84.411,11.84679721]
[1771003380188,0.82941831,84.437,84.411,12.62877292]
[1771003380386,0.82941831,84.437,84.412,0.78197571]
[1771003380690,0.82941831,84.457,84.421,0.78197571]
[1771003381089,0.8552397,84.439,84.413,46.28]
[1771003381268,0.8552397,84.439,84.414,0.84045912]
[1771003381470,0.8552397,84.449,84.414,0.84045912]
[1771003382186,0.8552397,84.449,84.416,0.84045912]
[1771003383986,0.8552397,84.449,84.413,46.28]
[1771003383987,0.8552397,84.46,84.421,0.84045912]
[1771003384377,11.26717784,84.46,84.421,0.84045912]
[1771003384575,0.8552397,84.459,84.421,0.84045912]
[1771003386379,0.8552397,84.459,84.431,0.84045912]
[1771003386595,11.83915011,84.466,84.433,0.84045912]
[1771003386996,12.69438981,84.466,84.433,0.84045912]
[1771003387183,0.8552397,84.465,84.433,0.84045912]
[1771003387379,3.88405069,84.46,84.433,0.84045912]
[1771003388495,0.8552397,84.459,84.435,0.84045912]
[1771003388692,0.8552397,84.458,84.434,11.84357012]
[1771003389477,0.8552397,84.458,84.435,0.84045912]
[1771003389896,0.8552397,84.474,84.435,0.84045912]
[1771003390090,0.8552397,84.473,84.435,0.84045912]
[1771003390402,0.8552397,84.48,84.453,0.84045912]
[1771003390578,0.8552397,84.486,84.455,0.84045912]
[1771003390898,3.88405069,84.48,84.455,0.84045912]
[1771003391096,0.8552397,84.469,84.454,46.54]
[1771003391595,0.8552397,84.469,84.44,0.84045912]
[1771003391596,0.8552397,84.469,84.444,11.84207859]
[1771003391775,3.88405069,84.46,84.441,46.56]
[1771003393109,11.83914094,84.466,84.441,46.56]
[1771003393298,11.83914094,84.466,84.442,12.71784071]
[1771003393498,11.83914094,84.466,84.442,0.87539264]
[1771003393679,3.88405069,84.46,84.441,46.56]
[1771003394181,3.88405069,84.46,84.433,0.87539264]
[1771003394598,3.88405069,84.45,84.418,0.87539264]
[1771003394801,3.88405069,84.45,84.422,0.87539264]
[1771003395175,3.88405069,84.45,84.423,11.84511329]
[1771003395380,3.88405069,84.45,84.425,0.87539264]
[1771003396080,11.84047331,84.457,84.425,0.87539264]
[1771003396489,11.84047331,84.457,84.424,44.1089451]
[1771003396695,3.88405069,84.45,84.424,44.1089451]
[1771003397577,11.84146644,84.449,84.425,11.84483269]
[1771003397777,0.8552397,84.448,84.424,44.1089451]
[1771003397976,41.44513255,84.449,84.406,46.62]
[1771003397977,3.88405069,84.43,84.406,46.62]
[1771003398199,3.88405069,84.42,84.406,46.62]
[1771003398376,3.88405069,84.42,84.375,100.74074072]
[1771003398377,3.88405069,84.42,84.375,41.48148147]
[1771003398581,3.88405069,84.44,84.377,0.87794198]
[1771003398582,3.88405069,84.41,84.377,0.87794198]
[1771003398782,3.88405069,84.42,84.381,0.87794198]
[1771003398991,3.88405069,84.43,84.391,0.87794198]
[1771003399197,3.88405069,84.42,84.391,0.87794198]
[1771003399398,3.88405069,84.41,84.391,0.87794198]
[1771003399594,3.88405069,84.44,84.393,0.87794198]
[1771003399595,3.88405069,84.42,84.393,0.87794198]
[1771003401601,3.88405069,84.42,84.394,11.84918359]
[1771003401903,3.88405069,84.41,84.391,46.64]
[1771003402407,3.88405069,84.41,84.392,11.8494644]
[1771003402788,3.88405069,84.41,84.374,29.62998067]
[1771003402789,0.02905453,84.409,84.378,0.87794198]
[1771003402992,0.02905453,84.409,84.38,0.87794198]
[1771003402993,3.88405069,84.4,84.38,0.87794198]
[1771003404015,3.88405069,84.4,84.381,11.85100911]
[1771003404483,0.0360907,84.399,84.381,11.81491838]
[1771003404888,0.0360907,84.399,84.377,46.68]
[1771003405083,0.0360907,84.399,84.378,11.85143046]
[1771003405806,3.88405069,84.4,84.378,11.85143046]
[1771003406112,3.88405069,84.4,84.378,12.7474178]
[1771003406906,3.88405069,84.4,84.379,0.89598734]
[1771003407493,3.88405069,84.41,84.379,0.89598734]
[1771003407896,11.84572507,84.419,84.381,0.89598734]
[1771003408409,3.88405069,84.41,84.383,0.89598734]
[1771003408805,3.88405069,84.42,84.383,0.89598734]
[1771003409312,3.88405069,84.42,84.384,46.76]
[1771003409509,3.88405069,84.42,84.385,0.89598734]
[1771003410016,3.88405069,84.42,84.387,0.89598734]
[1771003410191,3.88405069,84.42,84.389,0.89598734]
[1771003410607,42.52,84.445,84.389,0.89598734]
[1771003410608,11.84286881,84.439,84.389,0.89598734]
[1771003410793,0.02221234,84.429,84.391,0.90656933]
[1771003411204,3.88405069,84.43,84.391,0.90656933]
[1771003411410,42.5,84.452,84.401,0.90656933]
[1771003411411,3.88405069,84.44,84.401,0.90656933]
[1771003411924,3.88405069,84.43,84.401,0.90656933]
[1771003413021,47.35201199,84.474,84.392,46.78]
[1771003413022,0.0259093,84.419,84.392,46.78]
[1771003413228,3.88405069,84.41,84.387,0.90656933]
[1771003413598,0.02773027,84.419,84.387,0.90656933]
[1771003414225,3.88405069,84.41,84.387,0.90656933]
[1771003414407,3.88405069,84.4,84.382,11.85086866]
[1771003414816,3.88405069,84.4,84.382,12.75743799]
[1771003415511,0.02953202,84.409,84.382,12.75743799]
[1771003416319,3.88405069,84.41,84.383,0.90656933]
[1771003416822,3.88405069,84.42,84.385,0.89598734]
[1771003417322,3.88405069,84.42,84.387,0.89598734]
[1771003417496,3.88405069,84.42,84.371,61.9]
[1771003417497,3.88405069,84.43,84.391,0.89598734]
[1771003419124,11.84308723,84.438,84.401,0.89598734]
[1771003419316,3.88405069,84.44,84.401,0.89598734]
[1771003419622,3.88405069,84.44,84.403,0.89598734]
[1771003420227,3.88405069,84.45,84.411,0.89598734]
[1771003420435,3.88405069,84.45,84.404,46.88]
[1771003420436,0.04154897,84.474,84.421,0.89598734]
[1771003420728,3.88405069,84.47,84.431,0.89598734]
[1771003420932,3.88405069,84.47,84.433,0.89598734]
[1771003421238,3.88405069,84.48,84.441,0.89598734]
[1771003421606,3.88405069,84.48,84.443,0.89598734]
[1771003422116,11.83726133,84.479,84.443,0.89598734]
[1771003422496,11.88206796,84.479,84.443,0.89598734]
[1771003422729,3.88405069,84.48,84.443,0.89598734]
[1771003423227,3.88405069,84.47,84.443,0.89598734]
[1771003423838,0.04480663,84.475,84.445,0.89598734]
[1771003424127,3.88405069,84.47,84.445,0.89598734]
[1771003424531,3.88405069,84.47,84.441,0.89598734]
[1771003425102,3.88405069,84.48,84.441,0.89598734]
[1771003425333,3.88405069,84.48,84.451,0.89598734]
[1771003425926,0.0495418,84.478,84.452,11.8410458]
[1771003426631,3.88405069,84.47,84.443,0.89598734]
[1771003427233,0.0495418,84.478,84.443,0.89598734]
[1771003427434,3.88405069,84.47,84.443,0.89598734]
[1771003428128,11.89128374,84.469,84.443,0.89598734]
[1771003428340,11.8386627,84.469,84.441,11.84258831]
[1771003428506,11.8386627,84.469,84.442,0.89598734]
[1771003429136,11.83812614,84.473,84.442,0.89598734]
[1771003429738,3.88405069,84.47,84.442,0.89598734]
[1771003430122,15.72263839,84.47,84.443,11.84230782]
[1771003430429,15.72263839,84.47,84.444,0.89598734]
[1771003430932,15.72179637,84.47,84.444,0.89598734]